[Event "Rudolf Teschner GT 2022"]
[Site "Berlin"]
[Date "2022.05.28"]
[Round "5.6"]
[White "Paulsen, Dirk"]
[Black "Krefenstein, Sergej"]
[Result "1/2-1/2"]
[ECO "C00"]
[WhiteElo "2309"]
[BlackElo "2103"]
[Annotator "TA"]
[PlyCount "135"]
[EventDate "2022.05.25"]
[EventType "swiss"]
[EventCountry "GER"]
[SourceTitle "playchess.com"]
[Source "ChessBase"]
[SourceQuality "1"]
[TimeControl "5400+30"]

{[%evp 9,135,-58,-63,-64,-50,-52,-45,-54,-54,-59,-54,-62,-75,-75,-70,-81,-84,-88,-79,-72,-77,-86,-72,-76,-72,-82,-85,-84,-75,-93,-20,-53,-10,-29,18,20,26,5,0,0,26,-58,100,67,76,58,56,35,41,36,39,35,36,32,66,31,44,0,77,76,91,71,112,101,204,86,145,99,86,91,98,17,128,129,136,129,132,138,130,133,168,185,178,179,185,170,200,190,210,198,231,172,197,190,248,220,315,294,520,515,799,454,446,446,427,416,570,594,568,588,581,261,563,512,545,564,657,651,651,625,618,602,424,0,396,0,0,0]} 1. e4 {[%emt 0:19:58]} e6 {[%emt 0:00:55]} 2. Nc3 {[%emt 0:01:17]} d5 {[%emt 0:03:15]} 3. d3 {[%emt 0:05:10]} Nf6 {[%emt 0:02:13]} 4. e5 {[%emt 0:02:16]} Nfd7 {[%emt 0:00:13]} 5. Nf3 {[%emt 0:00:12]} c5 {[%emt 0:01:12]} 6. Bf4 {[%emt 0:01:34] C00: French: Unusual White 2nd moves.} Nc6 {[%emt 0:00:33]} 7. g3 {[%emt 0:03:42]} Be7 {[%emt 0:02:57] White must now prevent ...g5.} 8. h4 {[%emt 0:00:07] Against g5. Black is slightly better.} a6 {[%emt 0:00:48]} 9. Bh3 {[%emt 0:01:25]} b5 {[%emt 0:05:10][%cal Bb7b5,Bb5b4][%mdl 32] [#]} 10. Qe2 $146 {[%emt 0:10:58]} ({Predecessor:} 10. O-O Bb7 11. Re1 h6 12. Nh2 b4 13. Na4 Qa5 14. c4 dxc4 15. dxc4 O-O-O 16. b3 {0-1 (34) Belenkaya,D (2360)-Chernyak,V (2230) St Petersburg 2019}) 10... b4 {[%emt 0:02:49]} 11. Nb1 {[%emt 0:00:43]} a5 {[%emt 0:04:11]} 12. Nbd2 {[%emt 0:00:07]} Ba6 {[%emt 0:02:14]} 13. c4 {[%emt 0:01:04] cxd5 is the strong threat.} bxc3 {[%emt 0:02:46]} 14. bxc3 {[%emt 0:08:40]} h6 {[%emt 0:04:17]} 15. h5 {[%emt 0:05:29]} Rb8 {[%emt 0:02:36][%cal Oc5c4]} 16. O-O {[%emt 0:00:20]} O-O {[%emt 0:03:10]} 17. c4 {[%emt 0:01:00]} Nb6 {[%emt 0:02:25]} 18. Rfc1 {[%emt 0:00:17]} dxc4 {[%emt 0:04:15]} 19. dxc4 {[%emt 0:00:52]} Nd4 {[%emt 0:03:23]} (19... Nd5 $1 $17 20. Qe4 Nxf4 21. Qxf4 Qc7) 20. Qe3 {[%emt 0:04:50]} Nxf3+ {[%emt 0:03:43]} 21. Qxf3 {[%emt 0:00:22]} Qd7 {[%emt 0:09:07]} (21... Bg5 {was preferrable.}) 22. Bg2 $11 {[%emt 0:08:36]} Rfd8 {[%emt 0:02:10]} 23. Qg4 {[%emt 0:00:50] Threatens to win with Bxh6.} Kh8 {[%emt 0:03:04]} 24. Be4 {[%emt 0:00:19]} Qd4 {[%emt 0:03:29][%cal Rb6c4]} 25. Qe2 {[%emt 0:00:40] [#]} (25. Be3 $11 Qb2 26. Qf3) 25... Bb7 $2 {[%emt 0:05:43]} (25... Nxc4 $1 $15 {stays ahead.} 26. Nxc4 Rb4) 26. Bxb7 $16 {[%emt 0:00:15]} Rxb7 {[%emt 0:00:04]} 27. Nb3 {[%emt 0:00:29]} Qd7 {[%emt 0:04:37]} 28. Nxa5 {[%emt 0:00:15] Strongly threatening Rd1.} Ra7 {[%emt 0:00:30]} 29. Nb3 {[%emt 0:01:31]} Qc6 {[%emt 0:02:21]} 30. Nd2 {[%emt 0:01:40]} Ra4 {[%emt 0:01:49]} 31. Rc2 {[%emt 0:00:37]} Rd7 {[%emt 0:02:04]} 32. Kh2 {[%emt 0:00:31]} Rda7 {[%emt 0:00:53]} 33. Ne4 {[%emt 0:01:08]} Ra8 {[%emt 0:03:46]} (33... Nxc4 $11 34. Rxc4 Rxc4 35. Qxc4 Ra4) 34. f3 {[%emt 0:00:25]} Rb4 {[%emt 0:02:55]} 35. g4 {[%emt 0:00:19]} Raa4 {[%emt 0:00:57][%cal Rb6c4]} 36. Rac1 {[%emt 0:00:12]} Nd7 {[%emt 0:00:54]} (36... Qc7 $16) 37. Qd3 {[%emt 0:06:29]} (37. g5 $1 $18 {[%cal Rg5h6] and the rest is easy.} hxg5 38. Bxg5 Bxg5 39. Nxg5) 37... f6 {[%emt 0:03:35] [#]} (37... Qc7 $142) 38. Rd1 {[%emt 0:02:35]} (38. exf6 $142 $1 Nxf6 39. Nf2 (39. a3 Rb7 $14)) 38... Rb7 {[%emt 0:00:46]} 39. exf6 {[%emt 0:00:54]} Nxf6 {[%emt 0:00:15]} 40. Nc3 {[%emt 0:03:48] White is more active.} (40. Re1 $16) 40... Rd7 {[%emt 0:00:56]} (40... Rxc4 $1 $11 41. Qxc4 Rb4) 41. Qe2 {[%emt 0:00:39]} Rxd1 {[%emt 0:01:16]} 42. Nxd1 {[%emt 0:00:25][%cal Bc3d1,Bd1f2,Bf2d3][%mdl 32]} Bd6 {[%emt 0:01:31]} 43. Bxd6 {[%emt 0:01:22]} Qxd6+ {[%emt 0:00:02]} 44. Kg2 {[%emt 0:00:13]} Qc6 {[%emt 0:02:46]} 45. Rd2 {[%emt 0:01:40]} Ra8 {[%emt 0:01:02]} 46. Nf2 {[%emt 0:01:06]} Kg8 {[%emt 0:00:34]} 47. Qe3 {[%emt 0:03:58]} Re8 {[%emt 0:01:50]} 48. Qe5 {[%emt 0:00:28]} Nd7 {[%emt 0:00:54]} 49. Qe4 {[%emt 0:00:33]} Qc7 {[%emt 0:00:25]} 50. Nd3 {[%emt 0:00:18] Prevents Ne5.} Nf6 {[%emt 0:00:49]} 51. Qe5 {[%emt 0:00:48]} Qa5 {[%emt 0:00:26]} (51... Qd7 $142 52. a3 (52. Qxc5 e5 $14) 52... Qd8) 52. Re2 {[%emt 0:00:32]} Nd7 {[%emt 0:00:11]} (52... Qa8 $142 53. g5 (53. Nxc5 Nxg4 54. Qd6 Nf6 $16) 53... Nd7) 53. Qd6 $18 {[%emt 0:00:11][%csl LRd7,LRe6]} Qa7 {[%emt 0:00:30]} (53... Nf8 {was necessary.} 54. Kg3 (54. Qxc5 Qxc5 55. Nxc5 Rc8 $18) 54... Qc3) 54. Rxe6 {[%emt 0:00:40]} Qxa2+ {[%emt 0:00:46]} (54... Rf8 $142 55. Qd5 Kh8) 55. Nf2 {[%emt 0:00:20]} Nf6 {[%emt 0:00:08]} 56. Rxe8+ {[%emt 0:00:27]} Nxe8 {[%emt 0:00:03]} 57. Qxc5 {[%emt 0:00:11][%mdl 4096] Endgame KQN-KQN} Qd2 {[%emt 0:00:53]} 58. Qe7 {[%emt 0:01:39]} Nf6 {[%emt 0:00:33][%cal Be8f6,Bf6d5,Bd5e3,Be3f1][%mdl 32]} 59. c5 {[%emt 0:01:06]} Nd5 {[%emt 0:00:06]} 60. Qe8+ {[%emt 0:00:27]} Kh7 {[%emt 0:00:06] [#]} 61. Qe4+ $1 {[%emt 0:00:11]} Kg8 {[%emt 0:00:15]} 62. Kg3 {[%emt 0:00:34]} Ne3 {[%emt 0:01:21]} 63. Qe8+ {[%emt 0:01:30]} Kh7 {[%emt 0:00:06]} 64. Qg6+ {[%emt 0:00:04]} Kg8 {[%emt 0:00:14]} 65. Qe6+ {[%emt 0:00:01]} Kh7 {[%emt 0:00:14]} 66. Qe4+ {[%emt 0:00:14]} Kg8 $1 {[%emt 0:00:28]} 67. c6 $2 {[%emt 0:00:14]} ({Don't play} 67. Qe8+ Kh7 68. Qe4+ Kg8 $18) ({Better is} 67. Qd3 $18 Qe1 68. Qd4) 67... Nf1+ $11 {[%emt 0:00:24]} 68. Kg2 {[%emt 0:00:25] Weighted Error Value: White=0.20 (precise) /Black=0.31} 1/2-1/2

[Event "Rudolf Teschner GT 2022"]
[Site "Berlin"]
[Date "2022.05.28"]
[Round "6.1"]
[White "Klenburg, Michael"]
[Black "Van den Doel, Erik"]
[Result "0-1"]
[ECO "A07"]
[WhiteElo "2346"]
[BlackElo "2581"]
[Annotator "TA"]
[PlyCount "64"]
[EventDate "2022.05.25"]
[EventType "swiss"]
[EventCountry "GER"]
[SourceTitle "playchess.com"]
[Source "ChessBase"]
[SourceQuality "1"]
[TimeControl "5400+30"]

{[%evp 12,64,12,0,0,-6,-9,-6,0,0,0,0,0,-3,-5,-18,9,-29,-22,-29,-36,-40,-26,-27,-29,-27,-39,-41,-41,-62,-60,-57,-56,-62,-56,-57,-62,-60,-64,-59,-50,-58,0,-54,0,-35,-6,-10,0,0,0,0,9,-159,-158]} 1. Nf3 {[%emt 0:00:06]} d5 {[%emt 0:06:23]} 2. g3 {[%emt 0:00:17]} g6 {[%emt 0:00:31]} 3. Bg2 {[%emt 0:00:21]} Bg7 {[%emt 0:00:04]} 4. O-O {[%emt 0:00:24]} e5 {[%emt 0:00:11]} 5. d3 {[%emt 0:00:15]} Ne7 {[%emt 0:00:08]} 6. e4 {[%emt 0:00:42]} O-O {[%emt 0:00:05]} 7. Nbd2 {[%emt 0:00:53]} a5 {[%emt 0:09:37] A07: Réti Opening: New York and Capablanca Systems.} 8. a4 {[%emt 0:04:07]} Nbc6 {[%emt 0:00:57]} 9. c3 {[%emt 0:00:59]} h6 {[%emt 0:03:57] The position is equal.} 10. exd5 {[%emt 0:01:47]} Nxd5 {[%emt 0:00:07]} 11. Re1 {[%emt 0:00:39]} Nb6 $5 {[%emt 0:01:35][%mdl 4] [#] A promising side line.} 12. Qc2 $146 {[%emt 0:05:08]} ({Predecessor:} 12. Nb3 Re8 13. h3 Kh7 14. d4 exd4 15. Rxe8 Qxe8 16. Nfxd4 Nxd4 17. Nxd4 c6 18. Bf4 {½-½ (24) Polugaevsky,L-Dorfman,J Yerevan 1975}) 12... Bf5 {[%emt 0:04:07]} 13. Ne4 {[%emt 0:00:47]} Rb8 {[%emt 0:09:10]} 14. b3 {[%emt 0:02:06]} Re8 {[%emt 0:05:07]} 15. Ba3 {[%emt 0:04:49]} Nd5 {[%emt 0:06:01] Inhibits b4.} 16. Nfd2 {[%emt 0:06:31]} b6 {[%emt 0:06:32]} 17. Nc4 {[%emt 0:02:20][%cal Oe4d6]} Be6 {[%emt 0:02:11]} 18. Bb2 {[%emt 0:02:55]} Qd7 {[%emt 0:01:50]} 19. Rad1 {[%emt 0:01:48]} Rbd8 {[%emt 0:02:08]} 20. f3 {[%emt 0:06:52]} g5 {[%emt 0:09:40]} 21. Re2 {[%emt 0:02:20]} Nde7 {[%emt 0:00:30]} 22. Red2 {[%emt 0:00:41]} Ng6 {[%emt 0:03:37]} (22... f5 $5 23. Nf2 Bf6 $11) 23. Qb1 {[%emt 0:01:19]} Bd5 {[%emt 0:06:03]} 24. Qc2 {[%emt 0:01:14]} f5 {[%emt 0:03:10]} 25. Nf2 {[%emt 0:00:27]} h5 {[%emt 0:01:13]} 26. Re1 {[%emt 0:02:13][%cal Of2e4]} g4 {[%emt 0:00:56]} (26... h4 $15) 27. Qd1 {[%emt 0:01:23]} (27. fxg4 $11 hxg4 28. Bxd5+ Qxd5 29. Rde2) 27... Bh6 {[%emt 0:02:15]} (27... Rf8 $15) 28. Rc2 {[%emt 0:00:14]} Qg7 {[%emt 0:01:43][%cal Og6h4] Threatens to win with ...Nh4!} 29. fxg4 {[%emt 0:04:22]} Bxg2 {[%emt 0:01:07]} 30. g5 {[%emt 0:03:06]} Bxg5 {[%emt 0:00:43]} 31. Kxg2 {[%emt 0:00:05]} e4 {[%emt 0:00:40]} 32. Qxh5 {[%emt 0:01:00] [#]} ({Better is} 32. Nh3 $11 Bh6 33. Qxh5 exd3 34. Rxe8+ Rxe8 35. Rf2) 32... Bd2 $1 {[%emt 0:00:47][%mdl 512] Weighted Error Value: White=0.21 (precise) /Black=0.09 (flawless)} 0-1

[Event "Rudolf Teschner GT 2022"]
[Site "Berlin"]
[Date "2022.05.28"]
[Round "6.2"]
[White "Brustkern, Juergen"]
[Black "Florstedt, Johannes"]
[Result "0-1"]
[ECO "A03"]
[WhiteElo "2179"]
[BlackElo "2365"]
[Annotator "TA"]
[PlyCount "78"]
[EventDate "2022.05.25"]
[EventType "swiss"]
[EventCountry "GER"]
[SourceTitle "playchess.com"]
[Source "ChessBase"]
[SourceQuality "1"]
[TimeControl "5400+30"]

{[%evp 14,78,-38,-68,-42,-40,-20,-26,-27,-27,-23,-62,-60,-53,-68,-73,-54,-77,-36,-58,-73,-41,-44,-73,-61,-72,-77,-64,-50,-75,-14,-45,-44,-71,-61,-62,-46,-85,0,0,0,0,24,34,33,0,0,-483,-470,-1055,-906,-1065,-1051,-1077,-1066,-1002,-871,-858,-615,-1097,-1092,-29972,-29973,-29965,-12303,-29983,-858]} 1. f4 {[%emt 0:00:06]} d5 {[%emt 0:00:19]} 2. Nf3 {[%emt 0:00:08]} g6 {[%emt 0:00:28]} 3. e3 {[%emt 0:00:06]} Bg7 {[%emt 0:00:07]} 4. Be2 {[%emt 0:00:06]} c5 {[%emt 0:00:20]} 5. O-O {[%emt 0:00:14]} Nc6 {[%emt 0:00:12]} 6. d3 {[%emt 0:00:17]} Nf6 {[%emt 0:00:26][%cal Bg8f6,Bf6g4,Bg4e3][%mdl 32]} 7. a4 {[%emt 0:00:16]} O-O {[%emt 0:00:15]} 8. Kh1 {[%emt 0:01:13]} Qc7 {[%emt 0:00:39] A03: Bird's Opening with 1...d5.} 9. Nc3 {[%emt 0:00:15]} a6 {[%emt 0:00:18]} 10. e4 {[%emt 0:00:37] [#]} d4 $146 {[%emt 0:04:15][%cal Bd5d4,Bd4e3][%mdl 32] Black has an edge.} ({Predecessor:} 10... dxe4 11. dxe4 Rd8 12. Qe1 Nb4 13. Bc4 Nxc2 14. Qh4 Nxa1 15. f5 b5 16. axb5 axb5 17. Nxb5 {1-0 (27) Mesic,I (2078)-Salimova,N (2398) Budva 2021}) 11. Nb1 {[%emt 0:00:51]} ({But not} 11. Nd5 Nxd5 12. exd5 Nb4 $17) 11... Ng4 {[%emt 0:00:27]} 12. Ng1 {[%emt 0:14:22]} Ne3 {[%emt 0:00:11] Black is much more active.} 13. Bxe3 {[%emt 0:00:06]} dxe3 {[%emt 0:00:05]} 14. Nc3 {[%emt 0:02:46]} Nb4 $1 {[%emt 0:02:27]} 15. Rc1 {[%emt 0:12:24]} Bh6 {[%emt 0:02:09][%cal Bg7h6,Bh6f4,Bf4e5,Be5f6][%mdl 32]} (15... f5 $5 {[%cal Re7e5]}) 16. Qe1 {[%emt 0:08:20]} Bxf4 {[%emt 0:02:06]} 17. Qh4 {[%emt 0:03:25]} Be5 {[%emt 0:00:27]} 18. Nd1 {[%emt 0:02:00]} Nc6 {[%emt 0:24:25]} 19. c3 {[%emt 0:01:43]} Bf6 {[%emt 0:07:11]} 20. Qh6 {[%emt 0:09:14]} Bg7 {[%emt 0:02:32]} 21. Qh4 {[%emt 0:01:19]} c4 {[%emt 0:09:56]} (21... b5 $17) 22. d4 {[%emt 0:01:16]} e5 {[%emt 0:02:03]} 23. Bxc4 {[%emt 0:10:34]} Na5 {[%emt 0:09:17]} ({Much weaker is} 23... exd4 24. cxd4 Qb6 25. Nxe3 Qxd4 26. Nd5 Qxb2 27. Rb1 $14) 24. Bd5 {[%emt 0:02:39]} exd4 {[%emt 0:00:21] And now ...Be6 would win.} 25. b4 {[%emt 0:00:17] [#]} Be6 {[%emt 0:00:59]} 26. bxa5 $11 {[%emt 0:01:41]} Bxd5 {[%emt 0:00:06]} 27. exd5 {[%emt 0:00:09]} Rae8 {[%emt 0:05:57] Against Qe4. White must now prevent ...e2.} 28. Re1 {[%emt 0:02:01]} f5 {[%emt 0:02:44]} 29. d6 {[%emt 0:01:10]} (29. Rb1 $5 {[%cal Rc3d4]}) 29... Qxa5 {[%emt 0:00:10]} 30. cxd4 $2 {[%emt 0:05:37][%mdl 8192] [#]} (30. Qf4 $11 {and White is okay.}) 30... Bf6 $1 $19 {[%emt 0:04:52][%mdl 64] Deflection} 31. Qh6 {[%emt 0:06:52]} (31. Qg3 $142 f4 32. Qxf4 Qxe1 33. d7) 31... Qxe1 {[%emt 0:00:43]} 32. Rc7 {[%emt 0:00:11]} Rf7 {[%emt 0:00:34]} 33. Rxf7 {[%emt 0:00:27]} Kxf7 {[%emt 0:00:07]} 34. d7 {[%emt 0:00:16]} Rd8 {[%emt 0:03:19] ( -> ...e2)} 35. Nxe3 {[%emt 0:00:33]} Bg7 {[%emt 0:01:32]} 36. Qg5 {[%emt 0:00:30]} Rxd7 {[%emt 0:03:25]} 37. Nxf5 {[%emt 0:00:06]} gxf5 {[%emt 0:00:26]} 38. Qxf5+ {[%emt 0:00:07]} Ke8 {[%emt 0:00:12]} 39. Qxh7 {[%emt 0:00:35] [#]} Qxg1+ $3 {[%emt 0:00:12][%mdl 512] Weighted Error Value: White=1.07/Black=0.27 (precise)} 0-1

[Event "Rudolf Teschner GT 2022"]
[Site "Berlin"]
[Date "2022.05.28"]
[Round "6.3"]
[White "Tscheuschner, Georg"]
[Black "Spiess, Gunter"]
[Result "1/2-1/2"]
[ECO "D27"]
[WhiteElo "2150"]
[BlackElo "2388"]
[Annotator "TA"]
[PlyCount "79"]
[EventDate "2022.05.25"]
[EventType "swiss"]
[EventCountry "GER"]
[SourceTitle "playchess.com"]
[Source "ChessBase"]
[SourceQuality "1"]
[TimeControl "5400+30"]

{[%evp 15,79,10,10,10,4,4,12,6,10,4,2,6,9,12,15,18,25,22,61,26,40,8,16,0,5,8,14,8,14,25,26,13,6,14,22,27,73,90,120,71,72,13,14,16,4,11,18,11,23,8,14,10,15,0,0,0,0,0,0,0,0,0,0,0,0,-8]} 1. c4 {[%emt 0:00:02]} e6 {[%emt 0:00:08]} 2. Nf3 {[%emt 0:00:04]} d5 {[%emt 0:00:08]} 3. e3 {[%emt 0:00:06]} Nf6 {[%emt 0:00:19]} 4. Nc3 {[%emt 0:00:17]} dxc4 {[%emt 0:00:44]} 5. Bxc4 {[%emt 0:00:06]} a6 {[%emt 0:00:03]} 6. d4 {[%emt 0:01:11]} b5 {[%emt 0:00:05]} 7. Bb3 {[%emt 0:02:58]} Bb7 {[%emt 0:00:15]} 8. O-O {[%emt 0:02:18]} c5 {[%emt 0:00:04]} 9. e4 {[%emt 0:14:15] D27: Queen's Gambit Accepted: Classical main line: 7 e4!? and 7 a4.} cxd4 {[%emt 0:00:09]} 10. Nxd4 {[%emt 0:03:17] Black should prevent e5.} Nc6 {[%emt 0:02:52]} 11. Nxc6 {[%emt 0:04:30]} Qxd1 {[%emt 0:02:11]} 12. Rxd1 {[%emt 0:00:06]} Bxc6 {[%emt 0:00:05]} 13. f3 {[%emt 0:00:54]} Bc5+ {[%emt 0:00:24]} 14. Kf1 {[%emt 0:00:01]} Rc8 {[%emt 0:03:33] [#]} 15. Ne2 $146 {[%emt 0:09:35]} ({Predecessor:} 15. Bf4 Ke7 16. Rac1 Nd7 17. Ne2 Rhd8 18. Bg3 Bb6 19. Bh4+ f6 20. Bf2 Bxf2 21. Kxf2 {½-½ (55) Bacrot,E (2695)-Bareev,E (2653) Ajaccio 2007}) 15... h6 {[%emt 0:15:53]} 16. Nd4 {[%emt 0:01:43]} Bb7 {[%emt 0:02:18]} 17. Be3 {[%emt 0:02:18]} Ke7 {[%emt 0:02:26]} 18. Rac1 {[%emt 0:04:52][%cal Od4f5]} Bd6 {[%emt 0:02:38]} 19. h3 {[%emt 0:26:50]} Rhd8 {[%emt 0:03:48]} 20. a4 {[%emt 0:03:06]} b4 {[%emt 0:02:45]} 21. a5 {[%emt 0:03:05]} Nd7 {[%emt 0:12:28]} 22. Bc4 {[%emt 0:04:18]} Nc5 {[%emt 0:06:48]} 23. b3 {[%emt 0:00:13]} Nd7 {[%emt 0:01:07]} 24. Kf2 {[%emt 0:03:54][%cal Oc4a6]} Ne5 {[%emt 0:19:41]} 25. Be2 {[%emt 0:00:05]} Rc3 {[%emt 0:06:10]} (25... g5 $11) 26. f4 $16 {[%emt 0:01:10]} Ng6 {[%emt 0:03:37][%cal Oc3e3] [#] Hoping for ...Rxe3!} 27. e5 {[%emt 0:02:07]} (27. Bxa6 $142 $1 {[%mdl 512]} Bxe4 {[#]} 28. Bd3 $1 Rxd3 29. Rxd3) 27... Bc7 {[%emt 0:00:10] [#]} 28. Bxa6 $1 {[%emt 0:02:17]} Bxa6 $11 {[%emt 0:02:02]} 29. Rxc3 {[%emt 0:00:05][%mdl 64] Remove Defender} bxc3 {[%emt 0:00:12]} 30. Nc6+ {[%emt 0:00:04][%mdl 64] Discovered Attack, Double Attack} Ke8 {[%emt 0:00:09]} 31. Nxd8 {[%emt 0:00:05]} c2 {[%emt 0:01:51] [#]} 32. Rc1 {[%emt 0:00:01][%cal Od8f7] Nxf7! is the strong threat.} Kxd8 {[%emt 0:00:36] The position is equal.} ({But not} 32... Bxd8 33. Rxc2 Kd7 34. Rd2+ Kc8 35. b4 $14 (35. Rd6 Bb5 $14)) 33. Rxc2 {[%emt 0:00:27]} Ne7 $1 {[%emt 0:00:23]} (33... Bxa5 $2 34. Ra2 $18) 34. Bb6 {[%emt 0:01:03]} Bxb6+ {[%emt 0:01:40]} 35. axb6 {[%emt 0:00:02] aiming for Rc7.} Nd5 {[%emt 0:00:57][%csl LRb6,LRf4] Prevents Rc7.} 36. Rc6 {[%emt 0:05:22]} Bb7 {[%emt 0:00:01]} 37. Rd6+ {[%emt 0:00:04]} Ke7 {[%emt 0:00:21]} 38. g3 {[%emt 0:00:25]} Nc3 {[%emt 0:01:16] White must now prevent ...Ne4+.} 39. Ke3 {[%emt 0:01:40]} h5 {[%emt 0:04:19]} 40. Rd4 {[%emt 0:02:25] Weighted Error Value: White=0.10 (very precise) /Black=0.05 (flawless)} 1/2-1/2

[Event "Rudolf Teschner GT 2022"]
[Site "Berlin"]
[Date "2022.05.28"]
[Round "6.4"]
[White "Tschernatsch, Johannes"]
[Black "Langrock, Hannes"]
[Result "0-1"]
[ECO "B40"]
[WhiteElo "2358"]
[BlackElo "2351"]
[Annotator "TA"]
[PlyCount "100"]
[EventDate "2022.05.25"]
[EventType "swiss"]
[EventCountry "GER"]
[SourceTitle "playchess.com"]
[Source "ChessBase"]
[SourceQuality "1"]
[TimeControl "5400+30"]

{[%evp 9,100,3,15,6,19,0,0,0,0,0,-4,-8,5,-39,-39,-35,-38,-53,-44,-105,-122,-126,-118,-149,-132,-122,-86,-108,-75,-64,-57,-74,-77,-80,-56,-58,-57,-54,-62,-54,-21,-31,-31,-45,-19,-31,-31,-77,-49,-104,-102,-110,-114,-114,-78,-96,-87,-103,-47,-62,-64,-70,-37,-47,-33,-155,-160,-144,-157,-150,-134,-150,-70,-70,-70,-70,-70,-70,-45,-168,-156,-230,-230,-236,-243,-372,-364,-338,-318,-647,-179,-155,-122]} 1. e4 {[%emt 0:00:03]} c5 {[%emt 0:00:49]} 2. Nf3 {[%emt 0:00:06]} e6 {[%emt 0:00:26]} 3. g3 {[%emt 0:00:28]} Nc6 {[%emt 0:01:54]} 4. Bg2 {[%emt 0:00:11]} Nf6 {[%emt 0:00:25]} 5. Qe2 {[%emt 0:00:06]} e5 {[%emt 0:00:38]} 6. O-O {[%emt 0:00:11] B40: Sicilian: 2...e6, Unusual lines.} Be7 {[%emt 0:00:43]} 7. c3 {[%emt 0:00:20]} O-O {[%emt 0:00:44]} 8. Na3 {[%emt 0:00:10][%cal Bb1a3,Ba3c4,Bc4e3][%mdl 32] The position is equal. 8.Na3 is better than 8.Rd1.} Re8 {[%emt 0:00:41]} 9. d3 {[%emt 0:02:22]} h6 {[%emt 0:02:33]} 10. Nc4 {[%emt 0:00:37]} Bf8 {[%emt 0:00:47]} 11. Nh4 {[%emt 0:13:12]} d5 {[%emt 0:03:32]} 12. Ne3 {[%emt 0:03:02]} Be6 {[%emt 0:04:32] [#]} 13. exd5 $146 {[%emt 0:02:39]} ({Predecessor:} 13. Qf3 Ne7 14. Nhf5 d4 15. Nxe7+ Bxe7 16. Nd5 Qd7 17. Nxe7+ Rxe7 18. Qe2 dxc3 19. bxc3 {0-1 (59) Alexeev,A (2292)-Khalifman,A (2616) Sochi 2019}) 13... Nxd5 {[%emt 0:00:13]} 14. Rd1 {[%emt 0:02:18] [#]} (14. a3 $15) 14... Nf4 $1 $17 {[%emt 0:18:12][%mdl 512]} 15. gxf4 {[%emt 0:00:36]} exf4 {[%emt 0:00:44]} ({Of course not} 15... Qxh4 $6 16. f5 Bd7 17. Be4 $11) 16. Nf3 {[%emt 0:01:33]} fxe3 {[%emt 0:01:56]} 17. fxe3 {[%emt 0:01:40]} Qd7 {[%emt 0:01:16] Black is more active.} 18. e4 {[%emt 0:03:17]} Bh3 {[%emt 0:02:32]} 19. Bf4 {[%emt 0:05:47]} Rad8 {[%emt 0:01:12]} 20. Bg3 {[%emt 0:05:48]} Bxg2 {[%emt 0:01:22]} 21. Qxg2 {[%emt 0:01:05]} f5 {[%emt 0:08:47]} 22. Rd2 {[%emt 0:05:06]} fxe4 {[%emt 0:03:35]} 23. dxe4 {[%emt 0:00:07]} Qe6 {[%emt 0:00:37]} 24. e5 {[%emt 0:02:41]} Rxd2 {[%emt 0:04:43]} 25. Qxd2 {[%emt 0:01:35]} Rd8 {[%emt 0:03:43]} 26. Qe2 {[%emt 0:01:08]} Qd5 {[%emt 0:01:54]} 27. c4 {[%emt 0:06:46]} Qd3 {[%emt 0:03:40]} 28. Re1 {[%emt 0:01:03]} (28. Qxd3 $15 Rxd3 29. Kf2) 28... g5 {[%emt 0:07:24]} 29. Qe4 {[%emt 0:06:17]} ({White should try} 29. Kg2 $15) 29... Qxe4 {[%emt 0:04:22]} 30. Rxe4 {[%emt 0:00:15]} Kf7 {[%emt 0:00:34]} 31. h4 {[%emt 0:02:08]} Kg6 {[%emt 0:01:50]} 32. hxg5 {[%emt 0:01:20]} hxg5 {[%emt 0:00:04]} 33. e6 {[%emt 0:04:09]} Re8 {[%emt 0:02:37]} ({Better is} 33... Rd3 $17 34. Kf2 Kf5) 34. Kg2 {[%emt 0:08:10]} Bg7 {[%emt 0:00:22]} 35. Re2 {[%emt 0:04:05]} Bf6 {[%emt 0:00:37]} (35... g4 $5 {[%cal Rg4f3]} 36. Nh2 (36. Nh4+ Kg5 $17) 36... Nd4 $17) 36. Bd6 {[%emt 0:04:56]} b6 {[%emt 0:04:31]} 37. a3 {[%emt 0:02:34] [#]} (37. b3 $15) 37... Na5 $1 {[%emt 0:06:24]} 38. b4 {[%emt 0:05:57]} cxb4 {[%emt 0:00:03]} ({Worse is} 38... Nxc4 39. bxc5 g4 40. Nd2 Nxd2 41. Rxd2 $11) 39. Bxb4 {[%emt 0:00:19]} Nxc4 {[%emt 0:00:05]} 40. Re4 {[%emt 0:02:33] [#]} b5 {[%emt 0:00:31]} (40... Nb2 $1 $17 {...Kf5 is the strong threat.} 41. e7 Nd3) 41. e7 $15 {[%emt 0:01:12]} Kf5 {[%emt 0:03:55]} 42. Re2 {[%emt 0:00:14]} g4 {[%emt 0:00:12]} 43. Nh2 {[%emt 0:01:20]} Ne5 {[%emt 0:00:44] White must now prevent ...Nd3.} 44. Kg3 {[%emt 0:00:57] This costs White the game.} ({White should play} 44. Nf1 $15) 44... Bxe7 $19 {[%emt 0:02:10]} 45. Bxe7 {[%emt 0:02:04]} (45. Nxg4 $17 {was called for.} Bh4+ 46. Kh3) 45... Rxe7 {[%emt 0:00:04]} 46. Nxg4 {[%emt 0:00:10] KRN-KRN} a5 {[%emt 0:01:26]} 47. Rf2+ {[%emt 0:01:29]} (47. Re1 {might work better.}) 47... Ke4 {[%emt 0:00:03]} 48. Re2+ {[%emt 0:00:03]} Kd4 {[%emt 0:00:04][%cal Oe7g7] And now ...Rg7! would win.} 49. Rd2+ $2 {[%emt 0:00:07]} (49. Nh6 Rd7 50. Nf5+ Kd5 51. Ne3+ Kc5 52. Kf4) 49... Kc5 $2 {[%emt 0:00:06]} (49... Nd3 50. Nf6 b4 51. axb4 axb4) 50. Re2 {[%emt 0:00:05]} Nc6 {[%emt 0:00:07] Weighted Error Value: White=0.32/Black=0.28 (precise)} 0-1